fUST/lending_fUST_20240416
["ID","MTS","AMOUNT","RATE_DAILY","PERIOD"]
[322677680,1713211758063,-295.13013116,0.00022717,2]
[322677681,1713211758084,-587.0,0.00022746,2]
[322677682,1713211758103,-344.78703434,0.00022764,2]
[322677683,1713211758125,-3840.64374066,0.0002284,2]
[322677684,1713211758146,-295.13013116,0.0002292,2]
[322677685,1713211758166,-243.11397292,0.00023,2]
[322677686,1713211758189,-295.13013116,0.00023123,2]
[322677687,1713211758213,-587.0,0.00023173,2]
[322677688,1713211758234,-59063.66666477,0.00023217,2]
[322677689,1713211758254,-647.16716666,0.0002376,2]
[322677690,1713211758274,-380.0,0.00024658,2]
[322677691,1713211758295,-200.0,0.00024658,15]
[322677692,1713211758315,-200.0,0.00024658,2]
[322677693,1713211758336,-3840.64374066,0.00024784,2]
[322677694,1713211758357,-823.0,0.0002479,2]
[322677695,1713211758379,-621.35835833,0.00024948,2]
[322677696,1713211758401,-156.98200501,0.00025,2]
[322677697,1713211758422,-599.93513208,0.00025,2]
[322677698,1713211758444,-823.0,0.0002549,2]
[322677699,1713211758466,-620.06791792,0.00026195,2]
[322677700,1713211758487,-3840.64374066,0.00026727,2]
[322677701,1713211758507,-3002.4982096,0.00026797,2]
[322677702,1713211758527,-917.01919934,0.00026797,2]
[322677703,1713211758547,-154.78330338,0.00027,2]
[322677704,1713211758567,-13645.32635987,0.00027,2]
[322677705,1713211758587,-1152.0,0.00027017,2]
[322677706,1713211758607,-300.003799,0.00027397,2]
[322677707,1713211758628,-166.666666,0.00027397,2]
[322677708,1713211758647,-1000.0,0.00027397,2]
[322677709,1713211758667,-9145.7680547,0.00027397,2]
[322677710,1713211758688,-398.205873,0.00027397,2]
[322677711,1713211758712,-973.82372611,0.000274,2]
[322677712,1713211758736,-800.48349952,0.000275,17]
[322677713,1713211758757,-38181.14719754,0.000275,2]
[322677714,1713211758777,-620.0033959,0.00027505,2]
[322677715,1713211758797,-2285.833042,0.00027713,2]
[322677716,1713211758821,-166.666666,0.00028038,2]
[322677717,1713211758841,-1152.0,0.00028039,2]
[322677718,1713211758861,-3440.66782494,0.0002831,2]
[322677719,1713211758881,-651.57439407,0.00028626,30]
[322677720,1713211759009,-2113.72511552,0.0002867,2]
[322677721,1713211759035,-3840.64374066,0.0002867,2]
[322677722,1713211759054,-166.666666,0.00028679,2]
[322677723,1713211759074,-185.0784515,0.00028769,10]
[322677724,1713211759093,-160.0,0.00028769,10]
[322677725,1713211759113,-160.67365099,0.00028769,10]
[322677726,1713211759132,-266.59597019,0.00028769,2]
[322677727,1713211759153,-500.0,0.00028769,2]
[322677728,1713211759173,-500.0,0.00028769,2]
[322677729,1713211759193,-500.0,0.00028769,2]
[322677730,1713211759216,-500.0,0.00028769,2]
[322677731,1713211759235,-500.0,0.00028769,2]
[322677732,1713211759255,-500.0,0.00028769,2]
[322677733,1713211759275,-500.0,0.00028769,2]
[322677734,1713211759296,-500.0,0.00028769,2]
[322677735,1713211759316,-407.10837835,0.00028769,2]
[322677736,1713211759335,-500.0,0.00028769,2]
[322677737,1713211759356,-500.0,0.00028769,2]
[322677738,1713211759375,-500.0,0.00028769,2]
[322677739,1713211759395,-500.0,0.00028769,2]
[322677740,1713211759415,-500.0,0.00028769,2]
[322677741,1713211759435,-511.3674414,0.00028769,2]
[322677742,1713211759457,-500.0,0.00028769,2]
[322677743,1713211759477,-500.0,0.00028769,2]
[322677744,1713211759497,-599.80553718,0.00028769,2]
[322677745,1713211759516,-500.0,0.00028769,2]
[322677746,1713211759536,-500.0,0.00028769,2]
[322677747,1713211759566,-500.0,0.00028769,2]
[322677748,1713211759586,-500.0,0.00028769,2]
[322677749,1713211759606,-500.0,0.00028769,2]
[322677750,1713211759626,-490.70868634,0.00028769,2]
[322677751,1713211759647,-500.0,0.00028769,2]
[322677752,1713211759681,-500.0,0.00028769,2]
[322677753,1713211759714,-634.76590823,0.00028769,2]
[322677754,1713211759744,-276.62044547,0.00028769,2]
[322677755,1713211759766,-500.0,0.00028769,2]
[322677756,1713211759789,-500.0,0.00028769,2]
[322677757,1713211759813,-500.0,0.00028769,2]
[322677758,1713211759836,-500.0,0.00028769,2]
[322677759,1713211759860,-500.0,0.00028769,2]
[322677760,1713211759883,-500.0,0.00028769,2]
[322677761,1713211759906,-500.0,0.00028769,2]
[322677762,1713211759928,-500.0,0.00028769,2]
[322677763,1713211759954,-500.0,0.00028769,2]
[322677764,1713211759981,-500.0,0.00028769,2]
[322677765,1713211760003,-500.0,0.00028769,2]
[322677766,1713211760025,-500.0,0.00028769,2]
[322677767,1713211760046,-500.0,0.00028769,2]
[322677768,1713211760068,-500.0,0.00028769,2]
[322677769,1713211760089,-500.0,0.00028769,2]
[322677770,1713211760111,-500.0,0.00028769,2]
[322677771,1713211760132,-500.0,0.00028769,2]
[322677772,1713211760154,-500.0,0.00028769,2]
[322677773,1713211760177,-39309.63959716,0.0002877,5]
[322677774,1713211765231,154.78330338,0.000154,2]
[322677811,1713211832429,-2867.04166868,0.00019044,2]
[322677812,1713211832441,-4050.99919889,0.00019044,2]
[322677813,1713211832451,-949.00080111,0.00019044,2]
[322677814,1713211832485,-1200.0,0.00019044,2]
[322677872,1713211838429,-955.42296601,0.00019044,2]
[322679906,1713212008564,220.395697,0.00018242,2]
[322679907,1713212155674,-154.78330338,0.00019011,2]
[322679908,1713212155700,-154.78330338,0.00019011,2]
[322679909,1713212155726,-452.03418749,0.00019011,2]
[322679910,1713212155759,-15.54287335,0.00019011,2]
[322679911,1713212155784,-216.09314923,0.00019011,2]
[322679912,1713212159098,207.55380091,0.00019011,2]
[322679913,1713212160769,300.0,0.00019011,2]
[322679914,1713212162062,22.41097076,0.00019011,2]
[322679915,1713212162088,277.58902924,0.00019011,2]
[322679916,1713212162937,154.78330338,0.00019011,2]
[322679917,1713212163037,329.22846163,0.00019011,2]
[322679918,1713212163063,973.37208049,0.00019011,2]
[322679919,1713212163294,-6421.37637523,0.00019011,2]
[322679920,1713212163598,-131.04849745,0.00019011,2]
[322679921,1713212163852,154.78330338,0.00019011,2]
[322679922,1713212165614,6135.5445744,0.00019011,2]
[322679923,1713212165804,-782.49629317,0.00019011,2]
[322679924,1713212166854,154.78330338,0.00019011,2]
[322679925,1713212168955,156.77861177,0.00019011,2]
[322679926,1713212170033,5685.6218419,0.00019011,2]
[322679927,1713212170059,105.83690275,0.00019011,2]
[322679928,1713212170692,1672.97193962,0.00019011,2]
[322679929,1713212170908,1088.76018233,0.00019011,2]
[322679930,1713212171755,154.78330338,0.00019011,2]
[322679931,1713212172994,154.78330338,0.00019011,2]
[322679932,1713212173342,888.05887897,0.00019011,2]
[322679933,1713212174129,1309.46372676,0.00019011,2]
[322679934,1713212175219,236.30551311,0.00019011,2]
[322679935,1713212175714,563.61476546,0.00019011,2]
[322679936,1713212176052,538.98088948,0.00019011,2]
[322679937,1713212179197,66.12064498,0.00019011,2]
[322679938,1713212179222,766.84636731,0.00019011,2]
[322679939,1713212179247,766.84636731,0.00019011,2]
[322679940,1713212179274,848.58519859,0.00019011,2]
[322679941,1713212179312,434.68925364,0.00019011,2]
[322679942,1713212179336,90.80141917,0.00019011,2]
[322679943,1713212179897,154.78330338,0.00019011,2]
[322679944,1713212180304,880.8735514,0.00019011,2]
[322679945,1713212180420,156.81617828,0.00019011,2]
[322679946,1713212180446,1283.27445223,0.00019011,2]
[322679947,1713212180471,552.34247015,0.00019011,2]
[322679948,1713212180497,552.34247015,0.00019011,2]
[322679949,1713212180523,75.1564457,0.00019011,2]
[322679950,1713212180737,211.7214804,0.00019011,2]
[322679951,1713212180866,265.46454405,0.00019011,2]
[322679952,1713212180893,1346.59435397,0.00019011,2]
[322679953,1713212180919,512.54252186,0.00019011,2]
[322679954,1713212181053,154.78330338,0.00019011,2]
[322679955,1713212181858,679.26852873,0.00019011,2]
[322679956,1713212181885,863.25608037,0.00019011,2]
[322679957,1713212181915,391.06512093,0.00019011,2]
[322679958,1713212182110,472.19095944,0.00019011,2]
[322679959,1713212182137,2567.53337618,0.00019011,2]
[322679960,1713212182164,2567.53337618,0.00019011,2]
[322679961,1713212182192,1310.78315577,0.00019011,2]
[322679962,1713212182245,154.78330338,0.00019011,2]
[322679963,1713212182281,408.25460692,0.00019011,2]
[322679964,1713212182545,208.28832541,0.00019011,2]
[322679965,1713212182572,1887.74196315,0.00019011,2]
[322679966,1713212183257,194.36742833,0.00019011,2]
[322679967,1713212183299,88.38652782,0.00019011,2]
[322679968,1713212184000,154.78330338,0.00019011,2]
[322679969,1713212184404,1838.93956028,0.00018915,2]
[322679970,1713212184436,807.99013633,0.00018915,2]
[322679971,1713212184930,154.78330338,0.00019011,2]
[322679972,1713212184971,470.72269089,0.0001901,2]
[322679973,1713212185669,648.61326088,0.00018016,2]
[322679974,1713212185700,1894.91793543,0.00018016,2]
[322679975,1713212185731,1894.91793543,0.00018016,2]
[322679976,1713212185762,1894.91793543,0.00018016,2]
[322679977,1713212185796,3800.75020131,0.00018016,2]
[322679978,1713212185827,3800.75020131,0.00018016,2]
[322679979,1713212185859,3800.75020131,0.00018016,2]
[322679980,1713212185894,2567.53337618,0.00018016,2]
[322679981,1713212185926,4596.84895272,0.00018016,2]
[322679982,1713212187902,-154.78330338,0.0001901,2]
[322679983,1713212187927,-154.78330338,0.0001901,2]
[322679984,1713212187955,-145.49630518,0.0001901,2]
[322679985,1713212188200,-9.2869982,0.0001901,2]
[322679986,1713212188297,445.77591374,0.0001901,2]
[322679987,1713212188691,-481.81750173,0.0001901,2]
[322679988,1713212188811,-9.83301024,0.0001901,2]
[322679989,1713212189206,-354.20058819,0.00019011,2]
[322679990,1713212189317,-7.22858343,0.00019011,2]
[322679991,1713212189383,185.88478385,0.00019011,2]
[322679992,1713212189656,161.08722091,0.00019011,2]
[322679993,1713212189682,354.20058819,0.00019011,2]
[322679994,1713212190199,-87.02240133,0.00019011,2]
[322679995,1713212190224,-187.68442226,0.00019011,2]
[322679996,1713212190308,-5.60626171,0.00019011,2]
[322679997,1713212190959,154.78330338,0.00019011,2]
[322679998,1713212192104,114.3172585,0.00019009,2]
[322679999,1713212192130,40.46604488,0.00019009,2]
[322680000,1713212192356,431.51844661,0.00019009,2]
[322680001,1713212192382,42.42610926,0.00019009,2]
[322680002,1713212192883,154.78330338,0.00019009,2]
[322680003,1713212193552,284.60808909,0.00019009,2]
[322680004,1713212193864,-701.08407269,0.00019009,2]
[322680005,1713212193934,-14.30783822,0.00019009,2]
[322680006,1713212194318,-1458.16338549,0.00019011,2]
[322680007,1713212194351,172.97629238,0.00019009,2]
[322680008,1713212194471,-29.75843644,0.00019011,2]
[322680009,1713212196521,1428.40494905,0.00019011,2]
[322680010,1713212196843,172.97629238,0.00019009,2]
[322680011,1713212196901,-1829.7592809,0.00019011,2]
[322680012,1713212196939,-37.34202614,0.00019011,2]
[322680013,1713212197225,519.0311523,0.00019011,2]
[322680014,1713212198904,1273.38610246,0.00019011,2]
[322680015,1713212198930,1310.36134902,0.00019011,2]
[322680016,1713212200408,304.24078065,0.00019011,2]
[322680017,1713212200440,154.78330338,0.00019011,2]
[322680018,1713212200472,60.37384785,0.00019011,2]
[322680019,1713212200497,1999.27604743,0.00019011,2]
[322680020,1713212200522,560.28212123,0.00019011,2]
[322680021,1713212201358,172.97629238,0.00019009,2]
[322680022,1713212201987,193.29068397,0.00019011,2]
[322680023,1713212202125,225.96730159,0.0001901,2]
[322680024,1713212202942,470.72269089,0.00019011,2]
[322680025,1713212205593,207.55380091,0.00019011,2]
[322680026,1713212205633,162.20041867,0.00019011,2]
[322680027,1713212206722,6.28273779,0.00019011,2]
[322680028,1713212206747,355.14643383,0.00019011,2]
[322680029,1713212206966,249.61330265,0.00019011,2]
[322680030,1713212207648,602.31021043,0.00019011,2]
[322680031,1713212208091,186.43339324,0.00019011,2]
[322680032,1713212208301,605.77270728,0.00019011,2]
[322680033,1713212208329,331.65371843,0.00019011,2]
[322680034,1713212208885,167.25144684,0.00019011,2]
[322680035,1713212209447,154.78330338,0.00019011,2]
[322680036,1713212209554,1000.0,0.00019011,2]
[322680037,1713212210031,1065.53254484,0.00019011,2]
[322680038,1713212210057,422.38927709,0.00019011,2]
[322680039,1713212210304,2296.8317364,0.00019011,2]
[322680040,1713212210332,1443.91414838,0.00019011,2]
[322680041,1713212210373,1201.99674644,0.00019011,2]
[322680042,1713212213249,73.31011867,0.00019011,2]
[322680043,1713212213276,445.72103363,0.00019011,2]
[322680044,1713212214037,144.54297259,0.00019011,2]
[322680045,1713212214063,10.24033079,0.00019011,2]
[322680046,1713212214362,473.94455587,0.00019011,2]
[322680047,1713212214783,106.07911956,0.00019011,2]
[322680048,1713212214809,590.26400622,0.00019011,2]
[322680049,1713212214834,590.26400622,0.00019011,2]
[322680050,1713212214861,398.86898418,0.00019011,2]
[322680051,1713212215595,304.24078065,0.00019011,2]
[322680052,1713212216123,225.96730159,0.00019011,2]
[322680053,1713212217994,50.92293358,0.00019011,2]
[322680054,1713212218023,142.36775039,0.00019011,2]
[322680055,1713212218948,470.72269089,0.00019011,2]
[322680056,1713212220399,366.90955872,0.00019011,2]
[322680057,1713212220427,436.80661296,0.00019011,2]
[322680058,1713212220456,188.21339314,0.00019011,2]
[322680059,1713212220711,248.59321982,0.00019011,2]
[322680060,1713212220739,51.40678018,0.00019011,2]
[322680061,1713212221414,300.0,0.00019011,2]
[322680062,1713212223469,85.39983278,0.00019011,2]
[322680063,1713212223496,69.3834706,0.00019011,2]
[322680064,1713212225649,152.06448496,0.00019011,2]
[322680065,1713212225676,221.44795556,0.00019011,2]
[322680066,1713212225702,228.79776991,0.00019011,2]
[322680067,1713212226305,383.72183607,0.00019011,2]
[322680068,1713212226337,217.76292759,0.00019011,2]
[322680069,1713212226376,394.75667839,0.00019011,2]
[322680070,1713212226570,-3345.98920639,0.00019011,2]
[322680071,1713212227615,207.55380091,0.00019011,2]
[322680072,1713212228734,166.46622951,0.00019011,2]
[322680073,1713212229223,159.32939931,0.00019011,2]
[322680074,1713212229249,513.43970287,0.00019011,2]
[322680075,1713212230028,1487.92182193,0.00019011,2]
[322680076,1713212230148,216.09314923,0.00019011,2]
[322680077,1713212231849,467.57706084,0.00019011,2]
[322680078,1713212232088,303.82443573,0.00019011,2]
[322680079,1713212234035,154.78330338,0.00019011,2]
[322680080,1713212234122,160.0263346,0.00019011,2]
[322680081,1713212234378,473.94455587,0.00019011,2]
[322680082,1713212235523,101.72827167,0.00019011,2]
[322680083,1713212235549,49.12983235,0.00019011,2]
[322680084,1713212235582,1000.0,0.00019011,2]
[322680085,1713212236943,255.41920754,0.00019011,2]
[322680086,1713212237422,1088.76018233,0.00019011,2]
[322680087,1713212237847,154.78330338,0.00019011,2]
[322680088,1713212239460,156.77861177,0.00019011,2]
[322680089,1713212240089,563.61476546,0.00019011,2]
[322680090,1713212240165,10.58351943,0.00019011,2]
[322680091,1713212240192,182.70716454,0.00019011,2]
[322680092,1713212241476,157.36159205,0.00019011,2]
[322680093,1713212243544,2939.00066567,0.00019011,2]
[322680094,1713212243570,3279.06942226,0.00019011,2]
[322680095,1713212243595,552.34247015,0.00019011,2]
[322680096,1713212243620,552.34247015,0.00019011,2]
[322680097,1713212243875,-532.27038657,0.00019011,2]
[322680098,1713212243908,-579.61859849,0.00019011,2]
[322680099,1713212243992,-22.69161194,0.00019011,2]
[322680100,1713212246308,1089.19737312,0.00019011,2]
[322680101,1713212246335,1111.88898506,0.00019011,2]
[322680102,1713212246569,-1508.86633607,0.00019011,2]
[322680103,1713212246685,-30.79319053,0.00019011,2]
[322680104,1713212247979,888.05887897,0.0001901,2]
[322680105,1713212248037,590.01426657,0.00019011,2]
[322680106,1713212248063,501.86352708,0.00019011,2]
[322680107,1713212248102,154.78330338,0.0001901,2]
[322680108,1713212248147,303.161944,0.00019011,2]
[322680109,1713212248228,154.78330338,0.0001901,2]
[322680110,1713212249719,236.30551311,0.0001901,2]
[322680111,1713212249843,156.23506121,0.00019011,2]
[322680112,1713212249880,1.73368391,0.00019011,2]
[322680113,1713212249907,465.84337693,0.00019011,2]
[322680114,1713212251397,250.99947167,0.00019011,2]
[322680115,1713212251596,305.99729164,0.00019011,2]
[322680116,1713212251724,282.75395615,0.00019011,2]
[322680117,1713212252038,203.27223968,0.00019011,2]
[322680118,1713212253137,-41.79615668,0.00019011,2]
[322680119,1713212253163,-1282.43852909,0.00019011,2]
[322680120,1713212253287,-27.02519767,0.00019011,2]
[322680121,1713212253551,1000.0,0.00019011,2]
[322680122,1713212254383,297.2094881,0.00019011,2]
[322680123,1713212254409,176.73506777,0.00019011,2]
[322680124,1713212255411,251.15056385,0.00019011,2]
[322680125,1713212255472,285.23251702,0.00019011,2]
[322680126,1713212255826,570.15630359,0.00019011,2]
[322680127,1713212255854,1283.27445223,0.00019011,2]
[322680128,1713212255881,279.52786668,0.00019011,2]
[322680129,1713212255908,279.52786668,0.00019011,2]
[322680130,1713212256221,-12000.0,0.00019011,2]
[322680131,1713212256331,-12000.0,0.00019011,2]
[322680132,1713212256442,-12000.0,0.00019011,2]
[322680133,1713212256545,-12000.0,0.00019011,2]
[322680134,1713212256818,-8651.18017559,0.00019011,2]
[322680135,1713212256843,-622.68427412,0.00019011,2]
[322680136,1713212256870,-880.8735514,0.00019011,2]
[322680137,1713212257555,1845.26199889,0.00019011,2]
[322680138,1713212257583,6009.76341591,0.00019011,2]
[322680139,1713212258346,1933.58973003,0.0001901,2]
[322680140,1713212258739,154.78330338,0.0001901,2]
[322680141,1713212260476,154.78330338,0.0001901,2]
[322680142,1713212260518,193.64115742,0.00019011,2]
[322680143,1713212260624,525.49067281,0.0001901,2]
[322680144,1713212261545,116.33557779,0.0001901,2]
[322680145,1713212261571,1891.2926326,0.0001901,2]
[322680146,1713212261792,354.53382506,0.00019011,2]
[322680147,1713212261882,783.63141595,0.0001901,2]
[322680148,1713212262320,3740.74588478,0.00019011,2]
[322680149,1713212262515,157.4992408,0.0001901,2]
[322680150,1713212262550,154.78330338,0.00019011,2]
[322680151,1713212262583,538.98088948,0.0001901,2]
[322680152,1713212263244,211.7214804,0.00019011,2]
[322680153,1713212263362,1255.19848827,0.0001901,2]
[322680154,1713212263389,869.40293161,0.0001901,2]
[322680155,1713212263423,154.78330338,0.0001901,2]
[322680156,1713212264238,154.78330338,0.00019011,2]
[322680157,1713212265870,185.88478385,0.00019011,2]
[322680158,1713212267049,2096.03028856,0.00019011,2]
[322680159,1713212267856,535.43792866,0.00019011,2]
[322680160,1713212520889,220.395697,0.0001888,2]
[322680162,1713212528139,734.97503213,0.00019011,2]
[322680163,1713212548291,282.75395615,0.00019011,2]
[322680164,1713212564261,888.05887897,0.00019011,2]
[322680165,1713212566350,236.30551311,0.00019011,2]
[322680166,1713212570355,525.49067281,0.00019011,2]
[322680167,1713212576917,1933.58973003,0.00019011,2]
[322680168,1713212578110,270.49514108,0.00019011,2]
[322680169,1713212578345,-7432.83966825,0.00019011,2]
[322680170,1713212578407,-151.69060547,0.00019011,2]
[322680171,1713212578775,154.82968734,0.00019011,2]
[322680172,1713212579113,157.4992408,0.00019011,2]
[322680173,1713212581908,2007.62821039,0.00019011,2]
[322680174,1713212582887,154.82968734,0.0001901,2]
[322680175,1713212583999,2124.60141988,0.0001901,2]
[322680176,1713212589805,211.7214804,0.00019011,2]
[322680177,1713212597178,538.98088948,0.00019011,2]
[322680178,1713212598814,154.82968734,0.00016575,2]
[322680179,1713212599079,622.68427412,0.00019011,2]
[322680180,1713212607819,211.7214804,0.00019011,2]
[322680181,1713212611722,538.98088948,0.00019011,2]
[322680183,1713212622819,154.82968734,0.00015209,2]
[322680185,1713212627810,248.01242847,0.00019011,2]
[322680186,1713212627838,89.69773469,0.00019011,2]
[322680187,1713212631175,371.8844246,0.00019011,2]
[322680191,1713212635724,66.6191124,0.0001901,2]
[322680192,1713212635751,528.20127169,0.0001901,2]
[322680193,1713212635776,364.44673611,0.0001901,2]
[322680194,1713212635803,350.19660656,0.0001901,2]
[322680195,1713212646864,14.25012955,0.00019011,2]
[322680196,1713212647109,-501.0157324,0.00019011,2]
[322680197,1713212647288,-10.22481086,0.00019011,2]
[322680198,1713212659409,490.79092154,0.00019011,2]
[322680199,1713212659435,501.0157324,0.00019011,2]
[322680200,1713212659595,-941.78307609,0.00019011,2]
[322680201,1713212659625,-157.4992408,0.00019011,2]
[322680202,1713212662394,795.63561854,0.00019011,2]
[322680203,1713212662422,1894.91793543,0.00019011,2]
[322680204,1713212662449,1077.29667055,0.00019011,2]
[322680205,1713212662475,1077.29667055,0.00019011,2]
[322680206,1713212662553,-12000.0,0.00019011,2]
[322680207,1713212662660,-12000.0,0.00019011,2]
[322680208,1713212662882,-12000.0,0.00019011,2]
[322680209,1713212662932,-12000.0,0.00019011,2]
[322680210,1713212662971,-6218.5197697,0.00019011,2]
[322680211,1713212662997,-525.49067281,0.00019011,2]
[322680212,1713212664509,2007.62821039,0.0001901,2]
[322680214,1713212666511,2124.60141988,0.0001901,2]
[322680231,1713212702055,1123.75992722,0.000189,2]
[322680232,1713212702082,1442.84295517,0.000189,2]
[322680264,1713212754015,2316.06348449,0.00018914,2]
[322680388,1713212847174,-296.47554973,0.00019012,2]
[322680389,1713212847195,-300.0,0.00019013,2]
[322680390,1713212847215,-300.0,0.00019013,2]
[322680391,1713212847235,-236.30551311,0.00019014,2]
[322680392,1713212847259,-18174.55362783,0.00019014,2]
[322680393,1713212854111,-4603.27864982,0.00019014,2]
[322680394,1713212854133,-888.05887897,0.00019014,2]
[322680395,1713212854156,-216.32877159,0.00019015,2]
[322680396,1713212854179,-159.88602262,0.00019015,2]
[322680397,1713212854202,-306.66039129,0.00019015,2]
[322680398,1713212854224,-1050.48822801,0.00019015,2]
[322680399,1713212854248,-230.92352312,0.00019015,2]
[322680400,1713212854271,-1044.11364493,0.00019015,2]
[322680401,1713212854292,-257.63564145,0.00019015,2]
[322680402,1713212854313,-905.66315178,0.00019015,2]
[322680403,1713212854335,-158.33725419,0.00019042,2]
[322680404,1713212854356,-500.23773541,0.00019042,2]
[322680405,1713212854377,-246.98229438,0.00019043,2]
[322680406,1713212854399,-227.65732621,0.00019044,2]
[322680407,1713212854420,-154.78330338,0.00019148,2]
[322680408,1713212854440,-331.97035701,0.00019148,2]
[322680409,1713212854461,-168.661616,0.00019178,2]
[322680410,1713212854481,-168.940882,0.00019178,2]
[322680411,1713212854505,-1362.26392371,0.00019757,2]
[322680413,1713212955118,-1309.46372676,0.00019755,2]
[322680414,1713212955140,-300.0,0.00019756,2]
[322680415,1713212955160,-300.0,0.00019756,2]
[322680416,1713212955180,-221.94488442,0.00019757,2]
[322680417,1713212968096,-20818.87571352,0.00019757,2]
[322680418,1713213005001,1711.06858826,0.000189,2]
[322680467,1713213032655,-339.01778598,0.00019754,2]
[322680474,1713213032714,-1594.57194405,0.00019754,2]
[322680476,1713213032724,-421.90308519,0.00019754,2]
[322680478,1713213032736,-1513.78651647,0.00019754,2]
[322680480,1713213032749,-71.93860873,0.00019754,2]
[322680481,1713213032758,-525.49067281,0.00019755,2]
[322680482,1713213032768,-157.4992408,0.00019756,2]
[322680483,1713213032778,-2496.91547835,0.00019757,2]
[322680484,1713213032787,-300.0,0.00019997,2]
[322680485,1713213032797,-300.0,0.00019997,2]
[322680486,1713213032806,-8948.15599931,0.00019998,2]
[322680693,1713213038707,-630.50734712,0.00019899,2]
[322680694,1713213038719,-1396.0482018,0.00019899,2]
[322680695,1713213038727,-17183.5517982,0.00019997,2]
[322680696,1713213038739,-41880.11486657,0.00019997,2]
[322680697,1713213038748,-13829.67627834,0.00019998,2]
[322680698,1713213038757,-154.84515485,0.0002,2]
[322680699,1713213038767,-9558.22389449,0.0002,2]
[322680700,1713213038776,-241.07910305,0.0002,2]
[322680701,1713213038785,-688.1990758,0.0002,2]
[322680702,1713213038795,-175.05226836,0.0002,2]
[322680703,1713213038804,-326.84815688,0.0002,2]
[322680704,1713213038813,-154.84515485,0.0002,2]
[322680705,1713213038823,-291.7249986,0.00020719,2]
[322680708,1713213038832,-346.18858669,0.0002072,2]
[322680711,1713213038841,-4360.91133566,0.00021,2]
[322680713,1713213038850,-420.0,0.00021775,2]
[322680715,1713213038859,-420.0,0.00021997,2]
[322680718,1713213038869,-158.76974363,0.00022,2]
[322680721,1713213038878,-243.11397292,0.00023,2]
[322680723,1713213038888,-587.0,0.0002371,2]
[322680725,1713213038897,-1711.06858826,0.000239,2]
[322680727,1713213038907,-587.0,0.00024196,2]
[322680729,1713213038916,-452.91552653,0.00024337,2]
[322680731,1713213038926,-380.0,0.00024658,2]
[322680733,1713213038935,-156.98200501,0.00025,2]
[322680735,1713213038944,-823.0,0.00025818,2]
[322680737,1713213038954,-150.83408251,0.00025978,2]
[322680739,1713213038964,-823.0,0.00026616,2]
[322680741,1713213038973,-530.90142027,0.00026719,2]
[322680743,1713213038982,-233.08289041,0.0002672,2]
[322680745,1713213038991,-161.39098283,0.00026722,2]
[322680746,1713213039001,-249.42201248,0.00026722,2]
[322680747,1713213039010,-232.13723148,0.00026723,2]
[322680748,1713213039019,-258.86482058,0.00026723,2]
[322680749,1713213039029,-159.2042998,0.00026723,2]
[322680750,1713213039038,-216.92567183,0.00026723,2]
[322680751,1713213039047,-156.28749602,0.00026723,2]
[322680752,1713213039056,-211.88766688,0.00026724,2]
[322680753,1713213039065,-225.21113016,0.00026724,2]
[322680754,1713213039074,-282.38874774,0.00026724,2]
[322680755,1713213039083,-161.05952554,0.00026724,2]
[322680756,1713213039093,-186.05352053,0.00026724,2]
[322680757,1713213039102,-277.31237042,0.00026724,2]
[322680758,1713213039111,-294.52327201,0.00026724,2]
[322680759,1713213039120,-298.43292043,0.00026724,2]
[322680760,1713213039129,-159.94654956,0.00026724,2]
[322680761,1713213039141,-192.82633125,0.00026725,2]
[322680762,1713213039151,-243.60905786,0.00026725,2]
[322680763,1713213039162,-155.65800664,0.00026725,2]
[322680764,1713213039171,-158.76847547,0.00026951,2]
[322680765,1713213039182,-154.78330338,0.00027,2]
[322680766,1713213039191,-175.540723,0.00027397,2]
[322680767,1713213039201,-173.981163,0.00027397,2]
[322680768,1713213039210,-166.666666,0.00027397,2]